Cogmind - Beta 17 @@@ ROGUE MODE // 2026.07.01 @ 00:32:17 Player: Dull Result: Self-destructed Performance ------------- Evolutions (0) 0 Regions Visited (3) 600 Robots Destroyed (20) 100 Value Destroyed (460) 460 Prototype IDs (0) 0 Alien Tech Used (0) 0 Bonus (0) 0 TOTAL SCORE: 1160 Bonus ------- None Cogmind --------- Core Integrity 71/250 Matter 279/300 Energy 250/250 System Corruption 0% Temperature Cool (0) Movement Treading (160) Location -8/Recycling Parts ------- > --- POWER (1) -------- Ion Engine > --- PROPULSION (2) --- Light Treads Light Treads > --- UTILITY (2) ------ (None) > --- WEAPON (2) ------- Light Assault Rifle Battle Cannon > --- INVENTORY (5) ---- Light Treads Large Storage Unit Tractor Beam Light Assault Rifle Light Assault Rifle Peak State ------------ > --- POWER ------------ Ion Engine > --- PROPULSION ------- Light Treads Light Treads > --- UTILITY ---------- Scrap Shield > --- WEAPON ----------- Light Assault Rifle Battle Cannon > --- INVENTORY -------- Light Treads Tractor Beam Light Assault Rifle Light Assault Rifle Light Assault Rifle [Rating: 10] Favorites ----------- Power Ion Engine Engine Ion Engine Propulsion Light Treads Treads Light Treads Leg Aluminum Leg Utility Large Storage Unit Device Structural Scanner Storage Large Storage Unit Protection Scrap Shield Weapon Light Assault Rifle Ballistic Gun Light Assault Rifle Ballistic Cannon Battle Cannon Build | -11 -10 -10 -8 ------- Run | Yrd Mat Sub Rec Slots Evolved . | . . . . Power . | . . . . Propulsion . | . . . . Utility . | . . . . Weapon . | . . . . Parts Attached 13 | 1 9 3 . Power 2 | . 1 1 . Engine 2 | . 1 1 . Core . | . . . . Reactor . | . . . . Propulsion 2 | . 2 . . Treads 2 | . 2 . . Leg . | . . . . Wheel . | . . . . Hover . | . . . . Flight . | . . . . Utility 3 | . 2 1 . Device 1 | . 1 . . Storage 1 | . 1 . . Processor . | . . . . Hackware . | . . . . Protection 1 | . . 1 . Artifact . | . . . . Weapon 6 | 1 4 1 . Energy Gun . | . . . . Energy Cannon . | . . . . Ballistic Gun 5 | 1 4 . . Ballistic Cannon 1 | . . 1 . Launcher . | . . . . Special Weapon . | . . . . Impact Weapon . | . . . . Slashing Weapon . | . . . . Piercing Weapon . | . . . . Special Melee Weapon . | . . . . Unidentified Prototypes . | . . . . Parts Lost 5 | . 4 1 . Power . | . . . . Propulsion 1 | . 1 . . Utility 2 | . 1 1 . Weapon 2 | . 2 . . Highest Loss Streak 2 | . 2 1 . To Critical Strikes . | . . . . Average Backups 7 | 6 6 8 5 Power . | 1 1 . . Propulsion 2 | 4 3 2 1 Utility . | . . 1 2 Weapon 2 | 1 2 3 2 Tool/Special . | . . . . Unused Backups 13 | . 5 4 4 Power 1 | . 1 . . Propulsion 5 | . 2 2 1 Utility 2 | . 1 . 1 Weapon 5 | . 1 2 2 Tool/Special . | . . . . Average Slot Usage (%) 85 | . 90 84 71 Engine 14 | . 14 14 14 Treads 21 | . 13 28 28 Leg 5 | . 14 . . Device 2 | . 5 . . Storage 11 | . 14 10 . Protection 1 | . . 2 . Ballistic Gun 25 | . 27 24 14 Ballistic Cannon 2 | . . 3 14 Peak Build Rating 10 | 6 7 10 6 Average Rating 6 | 6 6 7 6 On Entrance 6 | 6 6 6 6 Avg Prop Armor Cover (%) 12 | . 12 . . Naked Turns . | . . . . Heaviest Build 27 | 12 27 27 9 Greatest Support 40 | 20 40 40 40 Greatest Overweight (x) 1 | . 1 . . Average Overweight (x) . | . . . . Largest Inventory Capacity 15 | 8 15 15 5 Average Capacity 11 | 8 10 12 5 Most Carried 10 | 6 9 10 5 Average Carried 7 | 6 6 8 5 Final Capacity 15 | 8 15 5 5 Final Carried 9 | 6 9 5 5 Class Distribution -------------------- 94% | Mutant 5% | Scavenger-Mutant Dominant Class ---------------- Mutant | -10/Materials Mutant | -10/Subcaves Mutant | -8/Recycling Resources | -11 -10 -10 -8 ----------- Run | Yrd Mat Sub Rec Matter Collected 703 | 210 165 268 60 Remotely . | . . . . Salvage Created 670 | . 400 270 . Parts 50 | . 28 22 . Haulers Intercepted 2 | . 2 . . Recyclers Shooed 1 | . 1 . . Parts Field Recycled . | . . . . Retrieved Matter . | . . . . Parts Self-Destructed 15 | . . 15 . Prevented . | . . . . Parts Restored . | . . . . Kills | -11 -10 -10 -8 ------- Run | Yrd Mat Sub Rec Combat Hostiles Destroyed 14 | . 8 6 . Guns 10 | . 8 2 . Cannons 4 | . . 4 . Classes Destroyed 6 | . 4 2 . Hauler 2 | . 2 . . Turret 2 | . . 2 . Watcher 2 | . 2 . . Swarmer 6 | . 3 3 . Grunt 7 | . 5 2 . Subdweller 1 | . . 1 . Best Kill Streak 7 | . 4 7 . Combat Bots Only 5 | . 3 5 . Max Kills in Single Turn 1 | . 1 1 . Gunslinging . | . . . . Exploded . | . . . . Melee . | . . . . Uniques/NPCs Destroyed . | . . . . Combat | -11 -10 -10 -8 -------- Run | Yrd Mat Sub Rec Hostile Shots Fired 196 | . 97 99 . Missed 69 | . 30 39 . Hits 127 | . 67 60 . Projectile 127 | . 67 60 . Critical Strikes 3 | . 2 1 . Damage Taken 1361 | . 744 617 . Core 179 | . 113 66 . Absorbed by Shields . | . . . . Core Remaining (%) 100 | 100 . . . Volleys Fired 125 | . 55 70 . Largest 2 | . 2 2 . Hottest 53 | . 40 53 . Shots Fired 245 | . 105 140 . Gun 222 | . 105 117 . Cannon 23 | . . 23 . Launcher . | . . . . Special . | . . . . Kinetic 245 | . 105 140 . Thermal . | . . . . Explosive . | . . . . Electromagnetic . | . . . . Robot Hit Streak 21 | . 15 21 . Robot Miss Streak 6 | . 6 4 . Penetration Max . | . . . . Secondary Targets 3 | . 3 . . Max Gunslinging Chain 1 | . 1 . . Shots Hit Robots 142 | . 73 69 . Core Hits 52 | . 22 30 . Critical Kills . | . . . . Critical Parts Destroyed . | . . . . Critical Strikes 1 | . . 1 . Destroy 1 | . . 1 . Melee Attacks . | . . . . Impact . | . . . . Slashing . | . . . . Piercing . | . . . . Sneak Attacks . | . . . . Combat Hostiles . | . . . . Follow-up Attacks . | . . . . Damage Inflicted 1497 | . 732 765 . Guns 1184 | . 732 452 . Cannons 313 | . . 313 . Explosions . | . . . . Melee . | . . . . Ramming . | . . . . Kinetic 1497 | . 732 765 . Thermal . | . . . . Explosive . | . . . . Electromagnetic . | . . . . Impact . | . . . . Slashing . | . . . . Piercing . | . . . . Highest Corruption . | . . . . Average Corruption . | . . . . Corruption Purged . | . . . . Corruption Blocked . | . . . . Overload Shots . | . . . . Overflow Damage . | . . . . Projectiles . | . . . . Explosions . | . . . . Melee . | . . . . Knockbacks 2 | . . 2 . Impact . | . . . . Kinetic 2 | . . 2 . Secondary . | . . . . Self-Inflicted Damage . | . . . . Shots . | . . . . Rammed . | . . . . Targets Rammed . | . . . . Kicked . | . . . . Crushed . | . . . . Highest Temperature 35 | . 35 16 . Average Temperature 12 | . 12 10 . Received Heat Transfer 717 | . 360 357 . Siege Activations . | . . . . Martial Activations . | . . . . Shielding Activations . | . . . . Robots Disrupted . | . . . . Combat Hostiles . | . . . . Robots Corrupted . | . . . . Combat Hostiles . | . . . . Parts Fried . | . . . . Impact Corruptions . | . . . . Robots Melted . | . . . . Combat Hostiles . | . . . . Parts Melted . | . . . . Heat Transferred . | . . . . Parts Sabotaged . | . . . . Parts Stolen . | . . . . Parts Stripped . | . . . . Power Chain Reactions . | . . . . Alert | -11 -10 -10 -8 ------- Run | Yrd Mat Sub Rec Maximum Alert Level . | . . . . Low Security (%) 100 | 100 100 . 100 Level 1 . | . . . . Level 2 . | . . . . Level 3 . | . . . . Level 4 . | . . . . Level 5 . | . . . . High Security . | . . . . Max Security . | . . . . Peak Influence 81 | . 76 . 81 Initial 81 | . . . 81 Average 25 | . 20 . 51 Influence Increases 450 | . 240 210 . Destroy 0b10 Robot/C 300 | . 160 140 . Destroy 0b10 Robot/NC 20 | . 20 . . Destroy Leader 48 | . 38 10 . Successful Hack 22 | . 22 . . Lose Combat Pursuer 60 | . . 60 . Influence Decreases 429 | . 240 40 149 Entered New Map 89 | . . . 89 Time Decay 293 | . 203 30 60 Lost Part 47 | . 37 10 . Squads Dispatched 1 | . 1 . . Investigation . | . . . . Extermination . | . . . . Reinforcement 1 | . 1 . . Assault . | . . . . Garrison . | . . . . Intercept . | . . . . Searches Triggered . | . . . . Construction Impeded . | . . . . Haulers Reinforced . | . . . . Active Scanning Responses . | . . . . Cargo Convoy Interrupts . | . . . . Stealth | -11 -10 -10 -8 --------- Run | Yrd Mat Sub Rec Distress Signals 1 | . 1 . . Communications Jammed . | . . . . Distress Signals . | . . . . Times Spotted 23 | . 13 10 . Peak Tracking Total 4 | . 4 4 . Tactical Retreats 2 | . . 2 . Traps | -11 -10 -10 -8 ------- Run | Yrd Mat Sub Rec Traps Triggered . | . . . . Indirectly . | . . . . Trap Hack Attempts . | . . . . Triggered . | . . . . Disarmed . | . . . . Reprogrammed . | . . . . Reused . | . . . . Traps Extracted . | . . . . Installed . | . . . . Triggered . | . . . . Machines | -11 -10 -10 -8 ---------- Run | Yrd Mat Sub Rec Machines Disabled 1 | . . 1 . Max in Single Turn 1 | . . 1 . Machines Repaired . | . . . . Machines Dismantled . | . . . . Machines Sabotaged . | . . . . Overloaded Fab Kills . | . . . . Hacking | -11 -10 -10 -8 --------- Run | Yrd Mat Sub Rec Machines Accessed 3 | . 3 . . Terminals 3 | . 3 . . Fabricators . | . . . . Repair Stations . | . . . . Recycling Units . | . . . . Scanalyzers . | . . . . Garrison Access . | . . . . Total Hacks 8 | . 8 . . Successful 5 | . 5 . . Failed 2 | . 2 . . Catastrophic . | . . . . Database Lockouts 1 | . 1 . . Manual 4 | . 4 . . Terminals 8 | . 8 . . Fabricators . | . . . . Repair Stations . | . . . . Recycling Units . | . . . . Scanalyzers . | . . . . Garrison Access . | . . . . Terminal Hacks 4 | . 4 . . Robot Analysis 2 | . 2 . . Locate Traps 1 | . 1 . . Zone Layout 1 | . 1 . . Fabricator Hacks . | . . . . Repair Station Hacks . | . . . . Recycling Unit Hacks . | . . . . Scanalyzer . | . . . . Garrison Access Hacks . | . . . . Unauthorized Hacks 1 | . 1 . . Terminals 1 | . 1 . . Botnet 1 | . 1 . . Fabricators . | . . . . Repair Stations . | . . . . Recycling Units . | . . . . Scanalyzers . | . . . . Garrison Access . | . . . . Data Cores Recovered . | . . . . Used . | . . . . Hacking Detections 1 | . 1 . . Full Trace Events . | . . . . Feedback Events . | . . . . Feedback Blocked . | . . . . Robot Schematics Acquired . | . . . . Robots Built . | . . . . Authchips . | . . . . Time . | . . . . Total Robot Build Rating . | . . . . Part Schematics Acquired . | . . . . Parts Built . | . . . . Authchips . | . . . . Time . | . . . . Total Part Build Rating . | . . . . Part Studies Acquired . | . . . . Parts Repaired . | . . . . Time . | . . . . Parts Recycled . | . . . . Recycled Matter . | . . . . Retrieved Matter . | . . . . Retrieved Components . | . . . . Parts Scanalyzed . | . . . . Part Schematics Acquired . | . . . . Parts Damaged . | . . . . Bothacking | -11 -10 -10 -8 ------------ Run | Yrd Mat Sub Rec Used RIF Installer . | . . . . Robots Hacked . | . . . . Non-combat . | . . . . Combat . | . . . . Robot Hacks Applied . | . . . . Relay Couplers Released . | . . . . Fabnet Peak Effective % . | . . . . Robots Rewired . | . . . . Allies Hacked . | . . . . Hacks Repelled . | . . . . Allies | -11 -10 -10 -8 -------- Run | Yrd Mat Sub Rec Total Allies . | . . . . Largest Group . | . . . . Highest-Rated Group . | . . . . Highest-Rated Ally . | . . . . Total Orders . | . . . . Ally Attacks . | . . . . Total Damage . | . . . . Kills . | . . . . Allies Corrupted . | . . . . Allies Melted . | . . . . Intel | -11 -10 -10 -8 ------- Run | Yrd Mat Sub Rec Active Infowar (turns) 346 | . 346 . . Structural 346 | . 346 . . Robot Analysis Total 2 | . 2 . . Derelict Logs Recovered . | . . . . Drone Launches . | . . . . Drone Recoveries . | . . . . Exploration | -11 -10 -10 -8 ------------- Run | Yrd Mat Sub Rec Turns Passed 2043 | 6 827 1073 137 Spaces Moved 1071 | 4 443 541 83 Core . | . . . . Treads 807 | . 183 541 83 Legs 264 | 4 260 . . Wheels . | . . . . Hover . | . . . . Flight . | . . . . Fastest Speed 120 | 120 120 160 160 Average Speed 150 | 120 136 160 160 Slowest Speed 190 | 120 190 160 160 Overloaded Moves . | . . . . Propulsion Burnouts . | . . . . Robots Hopped . | . . . . Potential Cave-ins . | . . . . Cave-ins Triggered . | . . . . Exploration Rate (%) 33 | 2 77 30 23 Regions Visited 3 Branch Regions 2 Pre-discovered Areas . | . . . . Known Exits Taken . | . . . . Unknown Exits Taken 3 | 1 1 1 . Scrap Searched 2 | . . 2 . Spaces Dug . | . . . . Terrain Destroyed 1 | . . 1 . Melee . | . . . . Projectile 1 | . . 1 . AOE . | . . . . Terrain Rammed . | . . . . Walls Destroyed . | . . . . Machines Disabled . | . . . . Actions | -11 -10 -10 -8 --------- Run | Yrd Mat Sub Rec Total 1298 | 4 573 634 87 Wait 59 | . 53 2 4 Move 1068 | 3 442 540 83 Hop . | . . . . Pick Up 11 | . 9 2 . Fast Attach 2 | . 1 1 . Attach 5 | . 5 . . Detach . | . . . . Swap 6 | 1 3 2 . Drop 12 | . 5 7 . Fire 125 | . 55 70 . Melee . | . . . . Ram . | . . . . Kick . | . . . . Crush . | . . . . Escape Stasis . | . . . . Rewire 10 | . . 10 . Trap . | . . . . Miscellaneous . | . . . . Route ------- -11/Scrapyard -10/Materials (discovered 3 exits: [*Mat] / [*Min] / [*Sub]) -10/Subcaves (discovered 2 exits: [*Mat] / [*Rec]) -8/Recycling History --------- Turn | Location | Event 3 | -11/Scrapyard | Discovered new exit (range 2) 7 | -11/Scrapyard | Entered Materials 67 | -10/Materials | Central database locked down 224 | -10/Materials | Discovered new exit (range 7) 300 | -10/Materials | Build established: Mutant 486 | -10/Materials | Discovered new exit (range 16) 825 | -10/Materials | Discovered new exit (range 4) 834 | -10/Materials | Entered Subcaves 855 | -10/Subcaves | Shifting Twisted Machinery released Battle Rifle 872 | -10/Subcaves | Shifting Twisted Machinery released Scrap Shield 1283 | -10/Subcaves | Disturbed a concealed Subdweller 1409 | -10/Subcaves | Shifting Twisted Machinery released Piercing Trap 1744 | -10/Subcaves | Discovered new exit (range 15) 1850 | -10/Subcaves | Core integrity fell below 50% 1884 | -10/Subcaves | Discovered new exit (range 12) 1907 | -10/Subcaves | Entered Recycling 2044 | -8/Recycling | Self-destructed Last Messages --------------- 01847_ Acquired 2 matter. 01852_ Lgt. Nuclear Core fries itself beyond repair. 01853_ S-10 Pest destroyed. 01859_ Lgt. Assault Rifle fries itself beyond repair. 01861_ Lgt. Ion Engine fries itself beyond repair. 01864_ Flight Unit fries itself beyond repair. 01871_ Autobeam Turret destroyed. 01872_ Lgt. Assault Rifle fries itself beyond repair. 01884_ EXIT=FOUND 01888_ Autobeam Turret destroyed. 01891_ Acquired 9 matter. 01901_ Acquired 15 matter. 01904_ Acquired 1 matter. LOCATION=UNKNOWN GOAL=ESCAPE 01917_ Acquired 60 matter. Map ----- +----------------------------------------------------+ | ??????????????????????????????????????????????? | | ??????????????????????????????????????????????? | | ??????????????????????????????????????????????? | | ??????????????????????????????????????????????? | | ??????????????????????????????????????????????? | | ??????????????????????????????????????????????? | | ??????????????????????????????????????????????? | | ??????????????????????????????????????????????? | | ??????????????????????????????????????????????? | | ??????????????????????????????????????????????? | | ??????????????????????????????????????????????? | | ??????????????????????????????????????????????? | | ??????????????????????????????????????????????? | | ????????+?????????????????????????????????????? | | ???????? ?????????????????????????????????????? | | ???????? ?????????????????????????????????????? | | ???????? ?????????????????????????????????????? | | ???????# #????????????????????????????????????? | | ??###### #????????###+##+#####+#??????????????? | | ??# T # ????????# #??????????????? | | ??# # #????????# #??????????????? | | ??# # #????????# #??????????????? | | ??# # #????????# #??????????????? | | ??# # ######???# ##?????????????? | | ??# # ## ##### r r#?????????????? | | ??# + + @ #??????????????? | | ### #### ##### r#?????????????? | | #"" #??## ##???# ##?????????????? | | #"Y #???# #????# #??????????????? | | #"" #???# #????# #??????????????? | | ### +??? #????# #??????????????? | | ??# #???# #????######+#######??????????????? | | ??##+###???# #????????????????????????????????? | | ???# #?????# ????????????????????????????????? | | ???# ####### ??????????????????????????? | | ???# ??????????????????????????? | | ???# ##### ###????????????????????????????????? | | ???# #????????????????????????????????????????? | | ???# #????????????????????????????????????????? | | ??##+#####????????????????????????????????????? | | ??# # ???????????????????????????????????? | | ??# # ???????????????????????????????????? | | ??# # ???????????????????????????????????? | | ?## # ???????????????????????????????????? | | ?# # ???????????????????????????????????? | | ?## # ???????????????????????????????????? | | ??# # ???????????????????????????????????? | | ??# # #??????????????????????????????????? | | ??# # #??????????????????????????????????? | | ??# # #??????????????????????????????????? | +----------------------------------------------------+ Best States ------------- Heat Dissipation 25 Energy Generation 10 Energy Capacity 250 Matter Stores 300 Matter Capacity 300 Sight Range 16 Terrain Scan Density 10 Armor Coverage 800 Evasion (%) 55 Recoil Reduction 2 Item Schematics ----------------- None Robot Schematics ------------------ None Fabricated ------------ Nothing Repaired ---------- Nothing Studied --------- None Alien Tech Used ----------------- None Achievements -------------- None Challenges ------------ None Game ------ Seed PhasingCouplerFirepult Manual? 0 Play Time 00:10:56 Cumulative 154.4 hours Start 2026.07.01 @ 00:21:25 End 2026.07.01 @ 00:32:17 Sessions 1 Manual Loads 0 Difficulty Rogue Special Mode None Game No. 212 Rogue 212 Adventurer 0 Explorer 0 Win Type - Total 1 Types 1/0/0/0/0/0/0/0/0/0 Lore% 51 Gallery% 53 Achievement% 30 Wizard Run 0 Options --------- Layout 1 ASCII 0 Keyboard 0 Movement Mouse Keybinds 1 Fullscreen 1 Font 24/Smallcaps Map View 50x35 Zoom Use 0% Tactical HUD 1 Map Filters NONE Filters NONE Steam 1 RUN: a24e4e32-7c71-4d9a-8e71-0420c12385f5